fUST/lending_fUST_20250422
["ID","MTS","AMOUNT","RATE_DAILY","PERIOD"]
[358648726,1745335844361,-500.0,0.00023013,2]
[358648727,1745335844371,-500.0,0.00023013,2]
[358648728,1745335844381,-500.0,0.00023013,2]
[358648729,1745335844391,-200.68045778,0.00023013,2]
[358648730,1745335844401,-500.0,0.00023013,2]
[358648731,1745335844411,-1032.6,0.00023013,2]
[358648732,1745335844421,-605.86638227,0.00023013,2]
[358648733,1745335844431,-500.0,0.00023013,2]
[358648734,1745335844441,-500.0,0.00023013,2]
[358648735,1745335844451,-500.0,0.00023013,2]
[358648736,1745335844464,-1284.2,0.00023013,2]
[358648737,1745335844474,-500.0,0.00023013,2]
[358648738,1745335844484,-500.0,0.00023013,2]
[358648739,1745335844495,-966.27,0.00023013,2]
[358648740,1745335844505,-500.0,0.00023013,2]
[358648741,1745335844515,-500.0,0.00023013,2]
[358648742,1745335844525,-500.0,0.00023013,2]
[358648743,1745335844536,-500.0,0.00023013,2]
[358648744,1745335844546,-500.0,0.00023013,2]
[358648745,1745335844556,-3523.51,0.00023013,2]
[358648746,1745335844566,-1250.41,0.00023013,2]
[358648747,1745335844576,-500.0,0.00023013,2]
[358648748,1745335844586,-500.0,0.00023013,2]
[358648749,1745335844595,-532.08,0.00023013,2]
[358648750,1745335844605,-500.0,0.00023013,2]
[358648751,1745335844615,-2605.84,0.00023013,2]
[358648752,1745335844625,-500.0,0.00023013,2]
[358648753,1745335844635,-654.54,0.00023013,2]
[358648754,1745335844645,-151.0,0.00023014,2]
[358648755,1745335844654,-198.0,0.00023014,2]
[358648756,1745335844664,-394.661,0.00023014,2]
[358648757,1745335844674,-505.37046575,0.00023106,2]
[358648758,1745335844685,-151.0,0.00023287,7]
[358648759,1745335844695,-151.0,0.00023287,7]
[358648760,1745335844704,-151.0,0.00023287,7]
[358648761,1745335844717,-500.0,0.00023287,2]
[358648762,1745335844726,-500.0,0.00023287,2]
[358648763,1745335844736,-500.0,0.00023287,2]
[358648764,1745335844746,-500.0,0.00023287,2]
[358648765,1745335844755,-249.563395,0.00023287,7]
[358648766,1745335844765,-249.563395,0.00023287,7]
[358648767,1745335844775,-500.0,0.00023287,2]
[358648768,1745335844786,-500.0,0.00023287,2]
[358648769,1745335844796,-500.0,0.00023287,2]
[358648770,1745335844806,-500.0,0.00023287,2]
[358648771,1745335844816,-500.0,0.00023287,2]
[358648772,1745335844825,-642.08,0.00023287,2]
[358648773,1745335844835,-500.0,0.00023287,2]
[358648774,1745335844845,-500.0,0.00023287,2]
[358648775,1745335844855,-180.19273463,0.00023287,2]
[358648776,1745335844864,-935.41,0.00023287,2]
[358648777,1745335844875,-1864.72,0.00023287,2]
[358648778,1745335844884,-500.0,0.00023287,2]
[358648779,1745335844895,-315.37134475,0.00023287,2]
[358648780,1745335844905,-2664.37,0.00023287,2]
[358648781,1745335844919,-171.56904505,0.00023287,2]
[358648782,1745335844930,-6712.89,0.00023287,2]
[358648783,1745335844939,-500.0,0.00023287,2]
[358648784,1745335844950,-500.0,0.00023287,2]
[358648785,1745335844961,-500.0,0.00023287,2]
[358648786,1745335844971,-500.0,0.00023287,2]
[358648787,1745335844982,-500.0,0.00023287,2]
[358648788,1745335844993,-500.0,0.00023287,2]
[358648789,1745335845004,-500.0,0.00023287,2]
[358648790,1745335845014,-1032.6,0.00023287,2]
[358648791,1745335845025,-500.0,0.00023287,2]
[358648792,1745335845035,-500.0,0.00023287,2]
[358648793,1745335845045,-500.0,0.00023287,2]
[358648794,1745335845055,-1284.2,0.00023287,2]
[358648795,1745335845065,-500.0,0.00023287,2]
[358648796,1745335845075,-500.0,0.00023287,2]
[358648797,1745335845085,-966.27,0.00023287,2]
[358648798,1745335845095,-500.0,0.00023287,2]
[358648799,1745335845105,-500.0,0.00023287,2]
[358648800,1745335845115,-500.0,0.00023287,2]
[358648801,1745335845125,-500.0,0.00023287,2]
[358648802,1745335845135,-500.0,0.00023287,2]
[358648803,1745335845146,-3523.51,0.00023287,2]
[358648804,1745335845155,-1250.41,0.00023287,2]
[358648805,1745335845165,-500.0,0.00023287,2]
[358648806,1745335845175,-500.0,0.00023287,2]
[358648807,1745335845185,-532.08,0.00023287,2]
[358648808,1745335845196,-500.0,0.00023287,2]
[358648809,1745335845206,-2605.84,0.00023287,2]
[358648810,1745335845219,-500.0,0.00023287,2]
[358648811,1745335845229,-654.54,0.00023287,2]
[358648812,1745335845239,-507.68983846,0.00023409,2]
[358648813,1745335845249,-500.0,0.00023409,2]
[358648814,1745335845259,-208.51997578,0.00023409,2]
[358648815,1745335845269,-500.0,0.00023409,2]
[358648816,1745335845279,-160.94284997,0.00023409,2]
[358648817,1745335845289,-403.0,0.000235,2]
[358648818,1745335845299,-500.0,0.00023552,2]
[358648819,1745335845308,-500.0,0.00023552,2]
[358648820,1745335845318,-500.0,0.00023552,2]
[358648821,1745335845328,-151.0,0.00023561,7]
[358648822,1745335845337,-151.0,0.00023561,7]
[358648823,1745335845347,-252.38505,0.00023561,7]
[358648824,1745335845357,-252.38505,0.00023561,7]
[358648825,1745335845368,-1635.776839,0.00023561,2]
[358648826,1745335845378,-1635.776839,0.00023561,2]
[358648827,1745335845387,-210.266833,0.00023561,7]
[358648828,1745335845397,-384.33103551,0.00023561,2]
[358648829,1745335845407,-500.0,0.00023561,2]
[358648830,1745335845416,-500.0,0.00023561,2]
[358648831,1745335845425,-500.0,0.00023561,2]
[358648832,1745335845436,-500.0,0.00023561,2]
[358648833,1745335845446,-500.0,0.00023561,2]
[358648834,1745335845455,-500.0,0.00023561,2]
[358648835,1745335845468,-500.0,0.00023561,2]
[358648836,1745335845483,-266.0,0.00023561,2]
[358648837,1745335845497,-500.0,0.00023561,2]
[358648838,1745335845512,-500.0,0.00023561,2]
[358648839,1745335845526,-500.0,0.00023561,2]
[358648840,1745335845540,-500.0,0.00023561,2]
[358648841,1745335845552,-500.0,0.00023561,2]
[358648842,1745335845564,-500.0,0.00023561,2]
[358648843,1745335845579,-500.0,0.00023561,2]
[358648844,1745335845592,-500.0,0.00023561,2]
[358648845,1745335845605,-517.69450112,0.00023561,2]
[358648846,1745335845619,-642.08,0.00023561,2]
[358648847,1745335845634,-500.0,0.00023561,2]
[358648848,1745335845648,-500.0,0.00023561,2]
[358648849,1745335845661,-935.41,0.00023561,2]
[358648850,1745335845676,-1864.72,0.00023561,2]
[358648851,1745335845689,-500.0,0.00023561,2]
[358648852,1745335845703,-2664.37,0.00023561,2]
[358648853,1745335845720,-6712.89,0.00023561,2]
[358648854,1745335845733,-500.0,0.00023561,2]
[358648855,1745335845746,-500.0,0.00023561,2]
[358648856,1745335845759,-500.0,0.00023561,2]
[358648857,1745335845771,-500.0,0.00023561,2]
[358648861,1745335845786,-500.0,0.00023561,2]
[358648863,1745335845800,-500.0,0.00023561,2]
[358648865,1745335845812,-500.0,0.00023561,2]
[358648867,1745335845825,-1032.6,0.00023561,2]
[358648868,1745335845836,-500.0,0.00023561,2]
[358648869,1745335845847,-500.0,0.00023561,2]
[358648870,1745335845860,-500.0,0.00023561,2]
[358648871,1745335845871,-1284.2,0.00023561,2]
[358648872,1745335845886,-500.0,0.00023561,2]
[358648873,1745335845899,-500.0,0.00023561,2]
[358648874,1745335845914,-966.27,0.00023561,2]
[358648875,1745335845926,-500.0,0.00023561,2]
[358648876,1745335845941,-500.0,0.00023561,2]
[358648877,1745335845957,-500.0,0.00023561,2]
[358648879,1745335845974,-500.0,0.00023561,2]
[358648882,1745335845988,-500.0,0.00023561,2]
[358648884,1745335846003,-3523.51,0.00023561,2]
[358648886,1745335846015,-1250.41,0.00023561,2]
[358648888,1745335846027,-500.0,0.00023561,2]
[358648891,1745335846038,-500.0,0.00023561,2]
[358648893,1745335846049,-532.08,0.00023561,2]
[358648895,1745335846063,-500.0,0.00023561,2]
[358648897,1745335846076,-2605.84,0.00023561,2]
[358648900,1745335846091,-500.0,0.00023561,2]
[358648902,1745335846107,-654.54,0.00023561,2]
[358648905,1745335846118,-255.83437802,0.00023562,2]
[358648907,1745335846129,-500.0,0.00023683,2]
[358648909,1745335846141,-481.25447053,0.00023683,2]
[358648911,1745335846154,-505.18792042,0.00023683,2]
[358648914,1745335846168,-501.04286608,0.00023683,2]
[358648916,1745335846181,-500.73159819,0.00023683,2]
[358648918,1745335846192,-177.92986561,0.00023683,2]
[358648920,1745335846204,-500.0,0.00023683,2]
[358648922,1745335846217,-500.0,0.00023683,2]
[358648925,1745335846228,-500.0,0.00023683,2]
[358648927,1745335846239,-500.0,0.00023683,2]
[358648929,1745335846251,-300.0,0.00023683,2]
[358648931,1745335846262,-500.0,0.00023688,2]
[358648933,1745335846273,-500.0,0.00023697,2]
[358648936,1745335846285,-500.0,0.00023697,2]
[358648938,1745335846297,-500.0,0.00023697,2]
[358648940,1745335846308,-500.0,0.00023697,2]
[358648942,1745335846319,-500.0,0.00023697,2]
[358648944,1745335846330,-500.0,0.00023713,2]
[358648946,1745335846341,-500.0,0.00023729,2]
[358648949,1745335846353,-556.61160428,0.00023729,2]
[358648951,1745335846364,-610.83560204,0.00023729,2]
[358648953,1745335846375,-500.0,0.00023729,2]
[358648955,1745335846386,-500.0,0.00023729,2]
[358648957,1745335846398,-500.0,0.00023835,2]
[358648959,1745335846409,-500.0,0.00023835,2]
[358648962,1745335846420,-500.0,0.00023835,2]
[358648964,1745335846432,-500.0,0.00023835,2]
[358648966,1745335846443,-500.0,0.00023835,2]
[358648968,1745335846455,-500.0,0.00023835,2]
[358648970,1745335846468,-500.0,0.00023835,2]
[358648973,1745335846480,-500.0,0.00023835,2]
[358648975,1745335846491,-642.08,0.00023835,2]
[358648977,1745335846503,-500.0,0.00023835,2]
[358648979,1745335846514,-350.88365585,0.00023835,2]
[358648982,1745335846526,-935.41,0.00023835,2]
[358648984,1745335846537,-1864.72,0.00023835,2]
[358648986,1745335846548,-500.0,0.00023835,2]
[358648988,1745335846560,-2664.37,0.00023835,2]
[358648991,1745335846572,-6712.89,0.00023835,2]
[358648993,1745335846584,-500.0,0.00023835,2]
[358648995,1745335846595,-500.0,0.00023835,2]
[358648997,1745335846607,-500.0,0.00023835,2]
[358649000,1745335846619,-500.0,0.00023835,2]
[358649002,1745335846631,-500.0,0.00023835,2]
[358649004,1745335846642,-500.0,0.00023835,2]
[358649006,1745335846653,-500.0,0.00023835,2]
[358649008,1745335846664,-1032.6,0.00023835,2]
[358649011,1745335846676,-500.0,0.00023835,2]
[358649013,1745335846687,-500.0,0.00023835,2]
[358649015,1745335846699,-500.0,0.00023835,2]
[358649017,1745335846710,-1284.2,0.00023835,2]
[358649019,1745335846721,-500.0,0.00023835,2]
[358649021,1745335846732,-500.0,0.00023835,2]
[358649024,1745335846745,-966.27,0.00023835,2]
[358649026,1745335846756,-500.0,0.00023835,2]
[358649028,1745335846768,-500.0,0.00023835,2]
[358649030,1745335846780,-500.0,0.00023835,2]
[358649033,1745335846794,-500.0,0.00023835,2]
[358649035,1745335846807,-500.0,0.00023835,2]
[358649037,1745335846819,-3523.51,0.00023835,2]
[358649039,1745335846831,-1250.41,0.00023835,2]
[358649042,1745335846843,-500.0,0.00023835,2]
[358649044,1745335846855,-500.0,0.00023835,2]
[358649046,1745335846866,-532.08,0.00023835,2]
[358649048,1745335846878,-500.0,0.00023835,2]
[358649050,1745335846890,-2605.84,0.00023835,2]
[358649053,1745335846902,-500.0,0.00023835,2]
[358649055,1745335846915,-654.54,0.00023835,2]
[358649057,1745335846928,-600.0,0.00023885,2]
[358649059,1745335846940,-303.0,0.000239,2]
[358649062,1745335846953,-409.71731474,0.0002399,2]
[358649064,1745335846968,-1675.02439174,0.00024,2]
[358649066,1745335846981,-151.0,0.00024109,7]
[358649068,1745335846994,-151.0,0.00024109,7]
[358649071,1745335847007,-151.0,0.00024109,7]
[358649073,1745335847019,-500.0,0.00024109,2]
[358649075,1745335847031,-500.0,0.00024109,2]
[358649077,1745335847044,-500.0,0.00024109,2]
[358649079,1745335847056,-249.563395,0.00024109,7]
[358649082,1745335847070,-249.563395,0.00024109,7]
[358649084,1745335847085,-500.0,0.00024109,2]
[358649086,1745335847097,-500.0,0.00024109,2]
[358649088,1745335847111,-500.0,0.00024109,2]
[358649090,1745335847122,-500.0,0.00024109,2]
[358649092,1745335847132,-500.0,0.00024109,2]
[358649094,1745335847143,-156.612074,0.00024109,7]
[358649115,1745335847343,-642.08,0.00024109,2]
[358649118,1745335847363,-151.0,0.00024109,7]
[358649120,1745335847373,-500.0,0.00024109,2]
[358649122,1745335847384,-383.954216,0.00024109,7]
[358649124,1745335847393,-383.954216,0.00024109,7]
[358649127,1745335847403,-151.0,0.00024109,7]
[358649129,1745335847413,-434.874249,0.00024109,2]
[358649131,1745335847422,-434.874249,0.00024109,2]
[358649133,1745335847432,-935.41,0.00024109,2]
[358649135,1745335847442,-1864.72,0.00024109,2]
[358649137,1745335847451,-500.0,0.00024109,2]
[358649138,1745335847462,-2664.37,0.00024109,2]
[358649140,1745335847472,-6712.89,0.00024109,2]
[358649142,1745335847482,-244.47351701,0.00024109,2]
[358649145,1745335847493,-500.0,0.00024109,2]
[358649147,1745335847503,-500.0,0.00024109,2]
[358649149,1745335847512,-500.0,0.00024109,2]
[358649151,1745335847522,-500.0,0.00024109,2]
[358649153,1745335847531,-500.0,0.00024109,2]
[358649155,1745335847541,-500.0,0.00024109,2]
[358649157,1745335847550,-1032.6,0.00024109,2]
[358649159,1745335847560,-500.0,0.00024109,2]
[358649161,1745335847570,-500.0,0.00024109,2]
[358649163,1745335847579,-500.0,0.00024109,2]
[358649165,1745335847590,-1284.2,0.00024109,2]
[358649167,1745335847599,-500.0,0.00024109,2]
[358649169,1745335847608,-500.0,0.00024109,2]
[358649170,1745335847617,-966.27,0.00024109,2]
[358649171,1745335847627,-500.0,0.00024109,2]
[358649172,1745335847636,-500.0,0.00024109,2]
[358649173,1745335847646,-500.0,0.00024109,2]
[358649174,1745335847655,-229.54642107,0.00024109,2]
[358649175,1745335847665,-500.0,0.00024109,2]
[358649176,1745335847675,-3523.51,0.00024109,2]
[358649177,1745335847684,-1250.41,0.00024109,2]
[358649178,1745335847694,-500.0,0.00024109,2]
[358649179,1745335847703,-888.81,0.00024109,2]
[358649180,1745335847715,-888.81,0.00024109,2]
[358649181,1745335847725,-888.81,0.00024109,2]
[358649182,1745335847734,-888.81,0.00024109,2]
[358649183,1745335847745,-888.81,0.00024109,2]
[358649184,1745335847754,-888.81,0.00024109,2]
[358649185,1745335847764,-888.81,0.00024109,2]
[358649186,1745335847774,-888.81,0.00024109,2]
[358649187,1745335847783,-888.81,0.00024109,2]
[358649189,1745335847793,-500.0,0.00024109,2]
[358649190,1745335847803,-532.08,0.00024109,2]
[358649193,1745335847813,-500.0,0.00024109,2]
[358649194,1745335847823,-2605.84,0.00024109,2]
[358649197,1745335847833,-500.0,0.00024109,2]
[358649198,1745335847843,-600.0,0.00024134,2]
[358649200,1745335847853,-500.0,0.00024252,2]
[358649203,1745335847865,-2200.0,0.00024252,2]
[358649205,1745335847876,-600.0,0.00024382,2]
[358649207,1745335847886,-151.0,0.00024383,7]
[358649209,1745335847896,-155.495855,0.00024383,7]
[358649211,1745335847906,-252.38505,0.00024383,7]
[358649213,1745335847918,-252.38505,0.00024383,7]
[358649215,1745335847928,-1635.776839,0.00024383,2]
[358649217,1745335847938,-1635.776839,0.00024383,2]
[358649219,1745335847949,-500.0,0.00024383,2]
[358649221,1745335847958,-500.0,0.00024383,2]
[358649223,1745335847971,-500.0,0.00024383,2]
[358649225,1745335847980,-500.0,0.00024383,2]
[358649227,1745335847991,-500.0,0.00024383,2]
[358649229,1745335848000,-151.0,0.00024383,7]
[358649230,1745335848010,-151.0,0.00024383,7]
[358649232,1745335848021,-151.0,0.00024383,2]
[358649234,1745335848030,-151.0,0.00024383,2]
[358649236,1745335848041,-500.0,0.00024383,2]
[358649238,1745335848051,-500.0,0.00024383,2]
[358649240,1745335848062,-500.0,0.00024383,2]
[358649242,1745335848072,-764.77,0.00024383,2]
[358649244,1745335848082,-764.77,0.00024383,2]
[358649247,1745335848092,-764.77,0.00024383,2]
[358649248,1745335848103,-764.77,0.00024383,2]
[358649250,1745335848112,-764.77,0.00024383,2]
[358649253,1745335848123,-764.77,0.00024383,2]
[358649254,1745335848132,-764.77,0.00024383,2]
[358649256,1745335848143,-764.77,0.00024383,2]
[358649258,1745335848153,-764.77,0.00024383,2]
[358649260,1745335848163,-764.77,0.00024383,2]
[358649262,1745335848172,-151.0,0.00024383,7]
[358649264,1745335848182,-642.08,0.00024383,2]
[358649266,1745335848192,-500.0,0.00024383,2]
[358649268,1745335848201,-935.41,0.00024383,2]
[358649270,1745335848213,-1864.72,0.00024383,2]
[358649272,1745335848222,-500.0,0.00024383,2]
[358649274,1745335848232,-2664.37,0.00024383,2]
[358649276,1745335848242,-6712.89,0.00024383,2]
[358649278,1745335848252,-162.179788,0.00024383,7]
[358649280,1745335848262,-162.179788,0.00024383,7]
[358649282,1745335848271,-193.62413,0.00024383,7]
[358649284,1745335848281,-500.0,0.00024383,2]
[358649286,1745335848290,-193.62413,0.00024383,7]
[358649288,1745335848300,-151.0,0.00024383,7]
[358649290,1745335848310,-500.0,0.00024383,2]
[358649292,1745335848319,-500.0,0.00024383,2]
[358649294,1745335848329,-500.0,0.00024383,2]
[358649296,1745335848339,-407.53788077,0.00024383,2]
[358649298,1745335848348,-151.0,0.00024383,7]
[358649300,1745335848358,-500.0,0.00024383,2]
[358649302,1745335848367,-1032.6,0.00024383,2]
[358649304,1745335848377,-500.0,0.00024383,2]
[358649306,1745335848386,-500.0,0.00024383,2]
[358649308,1745335848397,-500.0,0.00024383,2]
[358649309,1745335848407,-1284.2,0.00024383,2]
[358649312,1745335848416,-500.0,0.00024383,2]
[358649313,1745335848426,-500.0,0.00024383,2]
[358649315,1745335848436,-151.0,0.00024383,7]
[358649317,1745335848446,-966.27,0.00024383,2]
[358649319,1745335848455,-500.0,0.00024383,2]
[358649321,1745335848467,-500.0,0.00024383,2]
[358649323,1745335848477,-151.0,0.00024383,7]
[358649326,1745335848487,-500.0,0.00024383,2]
[358649327,1745335848496,-500.0,0.00024383,2]
[358649329,1745335848507,-3523.51,0.00024383,2]
[358649332,1745335848517,-1250.41,0.00024383,2]
[358649333,1745335848527,-500.0,0.00024383,2]
[358649335,1745335848537,-888.81,0.00024383,2]
[358649337,1745335848547,-500.0,0.00024383,2]
[358649339,1745335848557,-532.08,0.00024383,2]
[358649341,1745335848568,-500.0,0.00024383,2]
[358649343,1745335848578,-2605.84,0.00024383,2]
[358649345,1745335848589,-500.0,0.00024383,2]
[358649347,1745335848599,-11535.83403246,0.000245,2]
[358649349,1745335848609,-587.0,0.00024612,2]
[358649351,1745335848619,-600.0,0.00024631,2]
[358649353,1745335848628,-500.0,0.00024657,2]
[358649355,1745335848638,-500.0,0.00024657,2]
[358649357,1745335848647,-500.0,0.00024657,2]
[358649359,1745335848657,-500.0,0.00024657,2]
[358649361,1745335848666,-500.0,0.00024657,2]
[358649363,1745335848676,-151.0,0.00024657,7]
[358649365,1745335848686,-500.0,0.00024657,2]
[358649367,1745335848695,-500.0,0.00024657,2]
[358649369,1745335848705,-500.0,0.00024657,2]
[358649371,1745335848716,-764.77,0.00024657,2]
[358649373,1745335848727,-642.08,0.00024657,2]
[358649375,1745335848737,-500.0,0.00024657,2]
[358649377,1745335848746,-935.41,0.00024657,2]
[358649379,1745335848756,-1864.72,0.00024657,2]
[358649381,1745335848766,-500.0,0.00024657,2]
[358649383,1745335848776,-2664.37,0.00024657,2]
[358649385,1745335848786,-6712.89,0.00024657,2]
[358649387,1745335848796,-500.0,0.00024657,2]
[358649389,1745335848806,-500.0,0.00024657,2]
[358649391,1745335848816,-500.0,0.00024657,2]
[358649393,1745335848827,-500.0,0.00024657,2]
[358649395,1745335848837,-420.73667954,0.00024657,7]
[358649397,1745335848846,-500.0,0.00024657,2]
[358649399,1745335848856,-1032.6,0.00024657,2]
[358649401,1745335848866,-304.07843853,0.00024657,2]
[358649403,1745335848875,-500.0,0.00024657,2]
[358649405,1745335848885,-500.0,0.00024657,2]
[358649407,1745335848895,-1284.2,0.00024657,2]
[358649409,1745335848905,-500.0,0.00024657,2]
[358649411,1745335848916,-500.0,0.00024657,2]
[358649413,1745335848926,-966.27,0.00024657,2]
[358649415,1745335848936,-500.0,0.00024657,2]
[358649417,1745335848946,-500.0,0.00024657,2]
[358649419,1745335848958,-500.0,0.00024657,2]
[358649421,1745335848970,-500.0,0.00024657,2]
[358649423,1745335848980,-3523.51,0.00024657,2]
[358649425,1745335848991,-1250.41,0.00024657,2]
[358649427,1745335849001,-500.0,0.00024657,2]
[358649429,1745335849011,-888.81,0.00024657,2]
[358649430,1745335849022,-500.0,0.00024657,2]
[358649433,1745335849032,-532.08,0.00024657,2]
[358649435,1745335849043,-500.0,0.00024657,2]
[358649436,1745335849053,-2605.84,0.00024657,2]
[358649439,1745335849063,-182.55560108,0.00024657,2]
[358649440,1745335849074,-977.9923352,0.00024658,4]
[358649442,1745335849084,-200.0,0.00024658,15]
[358649444,1745335849094,-151.0,0.00024658,7]
[358649446,1745335849103,-151.0,0.00024658,7]
[358649448,1745335849114,-151.701871,0.00024658,7]
[358649450,1745335849123,-249.563395,0.00024658,7]
[358649453,1745335849134,-249.563395,0.00024658,7]
[358649454,1745335849144,-729.16666667,0.00024658,7]
[358649456,1745335849154,-193.34725938,0.00024658,2]
[358649458,1745335849164,-500.0,0.00024658,2]
[358649460,1745335849174,-500.0,0.00024658,2]
[358649463,1745335849187,-500.0,0.00024658,2]
[358649465,1745335849199,-500.0,0.00024658,2]
[358649467,1745335849209,-500.0,0.00024658,2]
[358649468,1745335849224,-500.0,0.00024658,2]
[358649470,1745335849234,-500.0,0.00024658,2]
[358649472,1745335849244,-500.0,0.00024658,2]
[358649475,1745335849255,-500.0,0.00024658,2]
[358649477,1745335849265,-500.0,0.00024658,2]
[358649479,1745335849275,-500.0,0.00024658,2]
[358649481,1745335849285,-500.0,0.00024658,2]
[358649483,1745335849296,-500.0,0.00024658,2]
[358649485,1745335849306,-500.0,0.00024658,2]
[358649487,1745335849315,-500.0,0.00024658,2]
[358649489,1745335849325,-500.0,0.00024658,2]
[358649491,1745335849335,-500.0,0.00024658,2]
[358649492,1745335849345,-500.0,0.00024658,2]
[358649495,1745335849355,-500.0,0.00024658,2]
[358649496,1745335849365,-500.0,0.00024658,2]
[358649498,1745335849375,-500.0,0.00024658,2]
[358649500,1745335849385,-500.0,0.00024658,2]
[358649503,1745335849396,-500.0,0.00024658,2]
[358649505,1745335849406,-500.0,0.00024658,2]
[358649507,1745335849416,-500.0,0.00024658,2]
[358649509,1745335849427,-500.0,0.00024658,2]
[358649511,1745335849437,-154.77154281,0.00024658,2]
[358649513,1745335849448,-500.0,0.00024658,2]
[358649515,1745335849458,-500.0,0.00024658,2]
[358649517,1745335849468,-500.0,0.00024658,2]
[358649519,1745335849478,-500.0,0.00024658,2]
[358649521,1745335849487,-500.0,0.00024658,2]
[358649523,1745335849497,-500.0,0.00024658,2]
[358649525,1745335849507,-650.0,0.00024658,2]
[358649527,1745335849517,-500.0,0.00024658,2]
[358649528,1745335849526,-1486.0726791,0.00024755,2]
[358649530,1745335849535,-163.84704066,0.00024799,2]
[358649532,1745335849545,-151.0,0.000248,7]
[358649534,1745335849555,-151.0,0.000248,7]
[358649536,1745335849565,-151.0,0.000248,7]
[358649538,1745335849575,-151.0,0.000248,7]
[358649540,1745335849584,-252.38505,0.000248,7]
[358649542,1745335849594,-252.38505,0.000248,7]
[358649544,1745335849603,-252.38505,0.000248,7]
[358649546,1745335849614,-252.38505,0.000248,7]
[358649549,1745335849623,-252.38505,0.000248,7]
[358649550,1745335849633,-252.38505,0.000248,7]
[358649552,1745335849644,-1635.776839,0.000248,2]
[358649554,1745335849654,-1635.776839,0.000248,2]
[358649556,1745335849665,-1635.776839,0.000248,2]
[358649558,1745335849675,-1635.776839,0.000248,2]
[358649561,1745335849686,-1635.776839,0.000248,2]
[358649563,1745335849695,-1635.776839,0.000248,2]
[358649565,1745335849705,-151.0,0.000248,7]
[358649566,1745335849714,-249.563395,0.000248,7]
[358649568,1745335849724,-249.563395,0.000248,7]
[358649571,1745335849734,-1131.810825,0.000248,7]
[358649573,1745335849744,-156.292858,0.000248,7]
[358649575,1745335849754,-160.0,0.000248,7]
[358649577,1745335849764,-434.874249,0.000248,2]
[358649579,1745335849773,-434.874249,0.000248,2]
[358649581,1745335849782,-151.0,0.000248,7]
[358649583,1745335849792,-162.179788,0.000248,7]
[358649585,1745335849801,-151.0,0.000248,7]
[358649587,1745335849811,-162.179788,0.000248,7]
[358649589,1745335849820,-193.62413,0.000248,7]
[358649591,1745335849830,-193.62413,0.000248,7]
[358649592,1745335849840,-220.173366,0.000248,7]
[358649593,1745335849850,-151.0,0.000248,7]
[358649594,1745335849859,-249.563395,0.000248,7]
[358649595,1745335849869,-41433.237349,0.000248,2]
[358649596,1745335849879,-151.0,0.000248,7]
[358649597,1745335849890,-151.0,0.000248,7]
[358649598,1745335849900,-151.0,0.000248,7]
[358649599,1745335849913,-151.0,0.000248,7]